Cogmind - Beta 13 @@@ ROGUE MODE // 2024.05.24 @ 09:26:42 Player: Erik The Viking Result: Destroyed by G-47 Trooper with Particle Gun Performance ------------- Evolutions (2) 1000 Regions Visited (6) 1200 Robots Destroyed (36) 180 Value Destroyed (677) 677 Prototype IDs (1) 20 Alien Tech Used (0) 0 Bonus (200) 200 TOTAL SCORE: 3277 Bonus ------- Entered Garrisons 200 Cogmind --------- Core Integrity 0/550 Matter 206/300 Energy 82/100 System Corruption 1% Temperature Cool (9) Movement Core (150) Ox2 Location -8/Garrison Parts ------- > --- POWER (1) -------- (None) > --- PROPULSION (4) --- (None) > --- UTILITY (4) ------ Signal Interpreter Improved Targeting Computer Core Analyzer > --- WEAPON (2) ------- Flak Cannon Katana > --- INVENTORY (5) ---- Surge Thruster ECM Suite High-powered Shotgun Concussive RPG (1) Peak State ------------ > --- POWER ------------ Light Nuclear Core > --- PROPULSION ------- Improved Flight Unit Improved Flight Unit Improved Flight Unit Improved Flight Unit > --- UTILITY ---------- Signal Interpreter Improved Targeting Computer Core Analyzer System Shield > --- WEAPON ----------- Flak Cannon Flak Cannon > --- INVENTORY -------- Surge Thruster ECM Suite High-powered Shotgun Katana [Rating: 32] Favorites ----------- Power Light Ion Engine Engine Light Ion Engine Power Core Light Nuclear Core Propulsion Improved Flight Unit Leg Aluminum Leg Wheel Wheel Hover Unit Improved Hover Unit Flight Unit Improved Flight Unit Utility ECM Suite Device ECM Suite Processor Signal Interpreter Hackware System Shield Protection Hardened Light Armor Plating Weapon EM Pulse Gun Energy Gun EM Pulse Gun Ballistic Gun Light Assault Rifle Ballistic Cannon Flak Cannon Special Weapon Mining Laser Slashing Weapon Katana Build | -11 -10 -10 -9 -9 -8 -8 ------- Run | Yrd Mat Min Mat Min Mat Gar Slots Evolved 4 | . . . 2 . 2 . Power . | . . . . . . . Propulsion 2 | . . . . . 2 . Utility 2 | . . . 2 . . . Weapon . | . . . . . . . Parts Attached 58 | 9 . 3 19 3 14 10 Power 5 | . . 1 1 . 2 1 Engine 3 | . . 1 1 . 1 . Core 2 | . . . . . 1 1 Reactor . | . . . . . . . Propulsion 20 | 4 . . 7 . 5 4 Treads . | . . . . . . . Leg 2 | . . . 2 . . . Wheel 4 | 4 . . . . . . Hover 3 | . . . 3 . . . Flight 11 | . . . 2 . 5 4 Utility 13 | 2 . . 6 1 3 1 Device 8 | 2 . . 4 . 1 1 Storage . | . . . . . . . Processor 3 | . . . 1 1 1 . Hackware 1 | . . . . . 1 . Protection 1 | . . . 1 . . . Artifact . | . . . . . . . Weapon 20 | 3 . 2 5 2 4 4 Energy Gun 8 | 2 . 1 3 2 . . Energy Cannon . | . . . . . . . Ballistic Gun 3 | 1 . . . . 2 . Ballistic Cannon 4 | . . . 1 . . 3 Launcher . | . . . . . . . Special Weapon 2 | . . 1 1 . . . Impact Weapon . | . . . . . . . Slashing Weapon 3 | . . . . . 2 1 Piercing Weapon . | . . . . . . . Special Melee Weapon . | . . . . . . . Unidentified Prototypes 1 | . . . 1 . . . Corrupted Parts 1 | . . . 1 . . . System Corruption 1 | . . . 1 . . . Parts Lost 15 | . . 3 . 1 6 5 Power 4 | . . 1 . . 1 2 Propulsion 5 | . . 1 . . 2 2 Utility 3 | . . 1 . . 1 1 Weapon 3 | . . . . 1 2 . Highest Loss Streak 6 | . . 3 . 1 6 4 To Critical Strikes . | . . . . . . . Average Slot Usage (%) 83 | . 85 91 72 82 90 91 Engine 5 | . . 6 4 11 4 1 Core 1 | . . . . . 2 5 Wheel 5 | . 28 28 . . . . Hover 2 | . . . 8 . . . Flight 17 | . . . 6 22 34 33 Device 17 | . 28 28 19 22 12 4 Processor 12 | . . . 8 16 18 27 Energy Gun 7 | . 14 7 11 11 5 . Ballistic Gun 4 | . 14 14 . . 8 1 Ballistic Cannon 2 | . . . 4 . . 9 Special Weapon 1 | . . 6 2 . . . Slashing Weapon 1 | . . . . . 2 5 Naked Turns . | . . . . . . . Heaviest Build 19 | 5 5 9 19 10 16 18 Greatest Support 32 | 32 20 20 20 10 20 20 Greatest Overweight (x) 3 | 1 . . 3 . . 1 Average Overweight (x) . | . . . . . . . Largest Inventory Capacity 5 | 5 5 5 5 5 5 5 Average Capacity 5 | 5 5 5 5 5 5 5 Most Carried 5 | 5 5 5 5 5 5 5 Average Carried 3 | 1 5 4 4 4 3 3 Final Capacity 5 | 5 5 5 5 5 5 5 Final Carried 5 | 5 5 4 5 5 4 4 Class Distribution -------------------- 40% | Scavenger-Mutant 35% | Mutant 22% | Sprinter Dominant Class ---------------- Scavenger-Mutant | -10/Materials Scavenger-Mutant | -10/Mines Mutant | -9/Materials Mutant | -9/Mines Sprinter | -8/Materials Scavenger-Mutant | -8/Garrison Resources | -11 -10 -10 -9 -9 -8 -8 ----------- Run | Yrd Mat Min Mat Min Mat Gar Matter Collected 1095 | 360 . 26 198 56 270 185 Remotely . | . . . . . . . Salvage Created 1142 | 255 . 34 258 49 316 230 Parts 79 | 25 . . 19 5 16 14 Haulers Intercepted 3 | . . . 1 . 2 . Recyclers Shooed 1 | . . . 1 . . . Parts Field Recycled . | . . . . . . . Retrieved Matter . | . . . . . . . Parts Self-Destructed . | . . . . . . . Prevented . | . . . . . . . Kills | -11 -10 -10 -9 -9 -8 -8 ------- Run | Yrd Mat Min Mat Min Mat Gar Combat Hostiles Destroyed 21 | . . 3 4 3 3 8 Melee 1 | . . . . . . 1 Guns 11 | . . 3 2 3 3 . Cannons 7 | . . . . . . 7 AOE 2 | . . . 2 . . . Classes Destroyed 13 | 3 . 1 4 . 2 3 Worker 6 | 2 . . 1 . 3 . Tunneler 6 | 6 . . . . . . Hauler 3 | . . . 1 . 2 . Recycler 2 | 1 . . 1 . . . Watcher 1 | . . . 1 . . . Swarmer 5 | . . . 2 3 . . Cutter 3 | . . . . . . 3 Grunt 4 | . . . 2 . . 2 Duelist 1 | . . . . . . 1 Sentry 1 | . . . . . 1 . Hunter 2 | . . . . . 2 . Programmer 2 | . . . . . . 2 Assembled 3 | . . 3 . . . . Best Kill Streak 4 | 2 . 3 4 3 3 4 Combat Bots Only 4 | . . 3 4 3 2 4 Max Kills in Single Turn 2 | 1 . 2 2 2 1 2 Gunslinging . | . . . . . . . Exploded 2 | . . . 2 . . . Melee 1 | . . . . . . 1 Uniques/NPCs Destroyed . | . . . . . . . Combat | -11 -10 -10 -9 -9 -8 -8 -------- Run | Yrd Mat Min Mat Min Mat Gar Hostile Shots Fired 178 | . . 14 7 13 56 88 Missed 46 | . . 1 1 6 13 25 Damage Taken 1974 | . . 201 111 88 574 1000 Core 652 | . . 33 36 24 149 410 Absorbed by Shields 28 | . . . . . 28 . Core Remaining (%) 90 | 100 . 86 . 85 . . Volleys Fired 130 | 43 . 10 12 6 43 16 Largest 2 | 2 . 2 2 2 2 2 Hottest 100 | 60 . 100 84 85 65 88 Shots Fired 184 | 54 . 15 17 8 59 31 Gun 143 | 54 . 10 11 8 59 1 Cannon 36 | . . . 6 . . 30 Launcher . | . . . . . . . Special 5 | . . 5 . . . . Kinetic 130 | 43 . 5 6 . 45 31 Thermal 10 | . . 10 . . . . Explosive . | . . . . . . . Electromagnetic 44 | 11 . . 11 8 14 . Robot Hit Streak 10 | 5 . 5 5 4 10 8 Robot Miss Streak 18 | 2 . 2 4 5 3 18 Penetration Max . | . . . . . . . Secondary Targets 2 | . . 1 . 1 . . Max Gunslinging Chain 1 | . . 1 . 1 . . Shots Hit Robots 136 | 37 . 6 10 6 49 28 Core Hits 81 | 19 . 5 10 6 14 27 Critical Kills . | . . . . . . . Critical Parts Destroyed . | . . . . . . . Critical Strikes 3 | 1 . . . . 1 1 Corrupt 1 | 1 . . . . . . Sever 2 | . . . . . 1 1 Melee Attacks 18 | . . . . . 3 15 Impact . | . . . . . . . Slashing 18 | . . . . . 3 15 Piercing . | . . . . . . . Sneak Attacks 1 | . . . . . 1 . Combat Hostiles . | . . . . . . . Follow-up Attacks . | . . . . . . . Damage Inflicted 2431 | 377 . 58 460 83 911 542 Guns 1417 | 349 . 58 158 83 769 . Cannons 298 | . . . . . . 298 Explosions 330 | 28 . . 302 . . . Melee 386 | . . . . . 142 244 Ramming . | . . . . . . . Kinetic 1182 | 234 . 26 . . 624 298 Thermal 362 | 28 . 32 302 . . . Explosive . | . . . . . . . Electromagnetic 501 | 115 . . 158 83 145 . Impact . | . . . . . . . Slashing 386 | . . . . . 142 244 Piercing . | . . . . . . . Highest Corruption 6 | . . 6 1 1 . 1 Average Corruption 1 | . . 6 1 1 . 1 Corruption Purged . | . . . . . . . Corruption Blocked . | . . . . . . . Effects 5 | . . 1 3 1 . . Message Errors 2 | . . 1 1 . . . Matter Fused 2 | . . . 1 1 . . Data Loss (major) 1 | . . . 1 . . . Overload Shots . | . . . . . . . Overflow Damage 90 | . . . 74 . 16 . Projectiles . | . . . . . . . Explosions 74 | . . . 74 . . . Melee 16 | . . . . . 16 . Knockbacks 2 | . . . . . . 2 Impact . | . . . . . . . Kinetic 2 | . . . . . . 2 Secondary . | . . . . . . . Self-Inflicted Damage 57 | . . . 57 . . . Shots 1 | . . . 1 . . . Rammed . | . . . . . . . Targets Rammed . | . . . . . . . Kicked . | . . . . . . . Crushed . | . . . . . . . Highest Temperature 180 | 20 . 40 89 42 80 180 Average Temperature 36 | 8 . 15 35 13 26 72 Received Heat Transfer 211 | . . 40 18 18 . 135 Siege Activations . | . . . . . . . Robots Corrupted . | . . . . . . . Combat Hostiles . | . . . . . . . Parts Fried 2 | 1 . . 1 . . . Impact Corruptions . | . . . . . . . Robots Melted . | . . . . . . . Combat Hostiles . | . . . . . . . Parts Melted . | . . . . . . . Heat Transferred 425 | 50 . 75 300 . . . Parts Sabotaged . | . . . . . . . Parts Stolen . | . . . . . . . Parts Stripped . | . . . . . . . Power Chain Reactions 3 | 1 . . 2 . . . Alert | -11 -10 -10 -9 -9 -8 -8 ------- Run | Yrd Mat Min Mat Min Mat Gar Peak Influence 288 | 45 29 21 177 199 197 288 Initial 128 | . 29 10 . 69 77 128 Average 79 | 20 29 10 36 139 137 221 Maximum Alert Level 1 | . . . . . . 1 Low Security (%) 92 | 100 100 100 100 100 100 32 Level 1 7 | . . . . . . 67 Level 2 . | . . . . . . . Level 3 . | . . . . . . . Level 4 . | . . . . . . . Level 5 . | . . . . . . . High Security . | . . . . . . . Max Security . | . . . . . . . Squads Dispatched 3 | . . . 1 . 2 . Investigation 2 | . . . . . 2 . Extermination . | . . . . . . . Reinforcement 1 | . . . 1 . . . Assault . | . . . . . . . Garrison . | . . . . . . . Intercept . | . . . . . . . Searches Triggered . | . . . . . . . Construction Impeded . | . . . . . . . Haulers Reinforced . | . . . . . . . Active Scanning Responses . | . . . . . . . Cargo Convoy Interrupts . | . . . . . . . Stealth | -11 -10 -10 -9 -9 -8 -8 --------- Run | Yrd Mat Min Mat Min Mat Gar Distress Signals 2 | . . . 1 . 1 . Communications Jammed . | . . . . . . . Distress Signals . | . . . . . . . Times Spotted 55 | . . 17 8 9 7 14 Peak Tracking Total 15 | . . 15 3 4 2 7 Tactical Retreats 5 | . . 2 1 1 . 1 Traps | -11 -10 -10 -9 -9 -8 -8 ------- Run | Yrd Mat Min Mat Min Mat Gar Traps Triggered . | . . . . . . . Indirectly . | . . . . . . . Trap Hack Attempts . | . . . . . . . Triggered . | . . . . . . . Disarmed . | . . . . . . . Reprogrammed . | . . . . . . . Reused . | . . . . . . . Traps Extracted . | . . . . . . . Installed . | . . . . . . . Triggered 1 | . . 1 . . . . Machines | -11 -10 -10 -9 -9 -8 -8 ---------- Run | Yrd Mat Min Mat Min Mat Gar Machines Disabled 1 | . . . 1 . . . Max in Single Turn 1 | . . . 1 . . . Machines Repaired . | . . . . . . . Machines Dismantled . | . . . . . . . Machines Sabotaged . | . . . . . . . Overloaded Fab Kills . | . . . . . . . Hacking | -11 -10 -10 -9 -9 -8 -8 --------- Run | Yrd Mat Min Mat Min Mat Gar Machines Accessed 6 | . . . 3 . 3 . Terminals 3 | . . . 1 . 2 . Fabricators . | . . . . . . . Repair Stations 1 | . . . 1 . . . Recycling Units 1 | . . . 1 . . . Scanalyzers . | . . . . . . . Garrison Access 1 | . . . . . 1 . Total Hacks 14 | . . . 6 . 8 . Successful 3 | . . . 2 . 1 . Failed 11 | . . . 4 . 7 . Catastrophic 1 | . . . 1 . . . Database Lockouts . | . . . . . . . Manual 2 | . . . . . 2 . Terminals 8 | . . . 2 . 6 . Fabricators . | . . . . . . . Repair Stations 3 | . . . 3 . . . Recycling Units 1 | . . . 1 . . . Scanalyzers . | . . . . . . . Garrison Access 2 | . . . . . 2 . Terminal Hacks 1 | . . . 1 . . . Emergency Access Points 1 | . . . 1 . . . Fabricator Hacks . | . . . . . . . Repair Station Hacks . | . . . . . . . Recycling Unit Hacks 1 | . . . 1 . . . Retrieve Components 1 | . . . 1 . . . Scanalyzer . | . . . . . . . Garrison Access Hacks 1 | . . . . . 1 . Unlock Access 1 | . . . . . 1 . Unauthorized Hacks . | . . . . . . . Terminals . | . . . . . . . Fabricators . | . . . . . . . Repair Stations . | . . . . . . . Recycling Units . | . . . . . . . Scanalyzers . | . . . . . . . Garrison Access . | . . . . . . . Data Cores Recovered . | . . . . . . . Used . | . . . . . . . Hacking Detections 5 | . . . 2 . 3 . Full Trace Events 3 | . . . 1 . 2 . Feedback Events . | . . . . . . . Feedback Blocked . | . . . . . . . Robot Schematics Acquired . | . . . . . . . Robots Built . | . . . . . . . Authchips . | . . . . . . . Time . | . . . . . . . Total Robot Build Rating . | . . . . . . . Part Schematics Acquired . | . . . . . . . Parts Built . | . . . . . . . Authchips . | . . . . . . . Time . | . . . . . . . Total Part Build Rating . | . . . . . . . Parts Repaired . | . . . . . . . Time . | . . . . . . . Parts Recycled . | . . . . . . . Recycled Matter . | . . . . . . . Retrieved Matter . | . . . . . . . Retrieved Components 3 | . . . 3 . . . Parts Scanalyzed . | . . . . . . . Part Schematics Acquired . | . . . . . . . Parts Damaged . | . . . . . . . Bothacking | -11 -10 -10 -9 -9 -8 -8 ------------ Run | Yrd Mat Min Mat Min Mat Gar Used RIF Installer . | . . . . . . . Robots Hacked . | . . . . . . . Non-combat . | . . . . . . . Combat . | . . . . . . . Robot Hacks Applied . | . . . . . . . Relay Couplers Released . | . . . . . . . Fabnet Peak Effective % . | . . . . . . . Robots Rewired . | . . . . . . . Allies Hacked . | . . . . . . . Hacks Repelled . | . . . . . . . Allies | -11 -10 -10 -9 -9 -8 -8 -------- Run | Yrd Mat Min Mat Min Mat Gar Total Allies 3 | . . 2 . 1 . . Largest Group 2 | . . 2 . 1 . . Highest-Rated Group 45 | . . 45 . 31 . . Highest-Rated Ally 31 | . . 31 . 31 . . Total Orders . | . . . . . . . Ally Attacks 9 | . . 5 . 4 . . Total Damage 129 | . . 64 . 65 . . Kills 4 | . . 1 . 3 . . Allies Corrupted . | . . . . . . . Allies Melted . | . . . . . . . Intel | -11 -10 -10 -9 -9 -8 -8 ------- Run | Yrd Mat Min Mat Min Mat Gar Robot Analysis Total . | . . . . . . . Derelict Logs Recovered 2 | . . 1 . 1 . . Drone Launches . | . . . . . . . Drone Recoveries . | . . . . . . . Exploration | -11 -10 -10 -9 -9 -8 -8 ------------- Run | Yrd Mat Min Mat Min Mat Gar Turns Passed 1366 | 307 13 168 333 153 232 160 Spaces Moved 1198 | 204 17 113 200 299 247 118 Core 19 | 15 . . 4 . . . Treads . | . . . . . . . Legs 19 | . . . 19 . . . Wheels 348 | 189 17 113 29 . . . Hover 100 | . . . 100 . . . Flight 712 | . . . 48 299 247 118 Fastest Speed 26 | 50 80 80 50 37 29 26 Average Speed 58 | 91 80 80 91 37 30 39 Slowest Speed 250 | 100 80 80 250 37 31 83 Overloaded Moves . | . . . . . . . Propulsion Burnouts . | . . . . . . . Robots Hopped 1 | . . . . . 1 . Cave-ins Triggered . | . . . . . . . Exploration Rate (%) 25 | 7 6 21 27 72 26 16 Regions Visited 6 Branch Regions 2 Pre-discovered Areas . | . . . . . . . Known Exits Taken 2 | . . . . 1 1 . Unknown Exits Taken 4 | 1 1 1 1 . . . Scrap Searched 1 | . . . . 1 . . Spaces Dug 3 | . . 3 . . . . Terrain Destroyed 19 | . . 3 16 . . . Melee . | . . . . . . . Projectile 4 | . . 3 1 . . . AOE 15 | . . . 15 . . . Terrain Rammed . | . . . . . . . Walls Destroyed . | . . . . . . . Machines Disabled . | . . . . . . . Actions | -11 -10 -10 -9 -9 -8 -8 --------- Run | Yrd Mat Min Mat Min Mat Gar Total 1665 | 280 16 165 343 333 346 182 Wait 169 | 10 . 40 70 22 21 6 Move 1190 | 203 16 112 199 298 244 118 Hop 1 | . . . . . 1 . Pick Up 60 | 13 . . 22 2 14 9 Fast Attach . | . . . . . . . Attach 44 | 8 . 1 17 3 11 4 Detach 6 | . . . 4 1 . 1 Swap 14 | 1 . 2 2 . 3 6 Drop 33 | 2 . . 17 1 6 7 Fire 130 | 43 . 10 12 6 43 16 Melee 18 | . . . . . 3 15 Ram . | . . . . . . . Kick . | . . . . . . . Crush . | . . . . . . . Escape Stasis . | . . . . . . . Rewire . | . . . . . . . Trap . | . . . . . . . Miscellaneous . | . . . . . . . Route ------- -11/Scrapyard -10/Materials -10/Mines (discovered 2 exits: *Mat / [*Exi]) -9/Materials (discovered 2 exits: [*Min] / Sto) -9/Mines -8/Materials -8/Garrison History --------- Turn | Location | Event 6 | -11/Scrapyard | Discovered new exit (range 15) 308 | -11/Scrapyard | Entered Materials 309 | -10/Materials | Build established: Scavenger-Mutant 309 | -10/Materials | Discovered new exit (range 16) 321 | -10/Materials | Entered Mines 374 | -10/Mines | Deemed a non-threat by the Exiles lab entrance 375 | -10/Mines | Discovered new exit (range 5) 428 | -10/Mines | Discovered new exit (range 7) 436 | -10/Mines | Assembled infested the area 489 | -10/Mines | Entered Materials 489 | -9/Materials | Evolved 2 slots: Utility x2 490 | -9/Materials | Identified exit to Storage 515 | -9/Materials | Lost 3 parts (1p1n1u) 790 | -9/Materials | Build established: Mutant 811 | -9/Materials | Discovered new exit (range 9) 822 | -9/Materials | Entered Mines 857 | -9/Mines | Escorted by a lone wolf Derelict 876 | -9/Mines | Met a Derelict bent on vengeance 887 | -9/Mines | Joined a pair of Derelicts in attacking an 0b10 outpost 937 | -9/Mines | Learned Materials garrison access intel 952 | -9/Mines | Discovered new exit (range 3) 953 | -9/Mines | Identified exit to Materials 975 | -9/Mines | Entered Materials 975 | -8/Materials | Evolved 2 slots: Propulsion x2 976 | -8/Materials | Loaded intel: 1 garrison access location 1164 | -8/Materials | Lost 6 parts (1p2n1u2w) 1207 | -8/Materials | Identified exit to Garrison 1207 | -8/Materials | Entered Garrison 1243 | -8/Garrison | Triggered checkpoint 1253 | -8/Garrison | Core integrity fell below 50% 1268 | -8/Garrison | Build established: Sprinter 1363 | -8/Garrison | Core integrity fell below 20% 1367 | -8/Garrison | Destroyed by G-47 Trooper with Particle Gun Last Messages --------------- Dropped Imp. Flight Unit. Acquired Blade Saw. Dropped Blade Saw. Acquired Surge Thruster. Acquired Concussive RPG. Dropped Flak Cannon. Acquired 40 matter. [Achievement: Deadly Force] G-47 Trooper destroyed. Acquired 53 matter. S-10 Pest destroyed. S-10 Pest Lgt. Assault Rifle severed. Surge Thruster severed. Surge Thruster destroyed. Reaction Control System destroyed. Surge Thruster severed. Lgt. Nuclear Core destroyed. Surge Thruster destroyed. L-31 Rogue knocked back. L-31 Rogue destroyed. Map ----- +----------------------------------------------------+ | ?????????????????????????????????????????????????? | | ?????????????????????????????????????????????????? | | ?????????????????????????????????????????????????? | | ?????????????????????????????????????????????????? | | ?????????????????????????????????????????????????? | | ?????????????????????????????????????????????????? | | ?????????????????????????????????????????????????? | | ?????????????????????????????????????????????????? | | ???????????????????????? ?????????????????????? | | ???????????????????????? ?????????????????????? | | ???????????????????????? ?????????????????????? | | ???????????????????????? ?????????????????????? | | ???????????????????????? #?????????????????????? | | ???????????????????????? #?????????????????????? | | ###????????????????????? ?????????????????????? | | ""#????????????????????? ?????????????????????? | | =##############????????? ?????????????????????? | | = [ ! ] #?????????# #?????????????????????? | | ####### ### #?????????# #?????????????????????? | | ??????# #?# #?????????# #?????????????????????? | | ??????#####?# #?????????+ #?????????????????????? | | ????????????# #?????????#[%#?????????????????????? | | ????????????# #?????????#[s#?????????????????????? | | ????????????# #?????????#[%#?????????????????????? | | ?????????#### ###########!g#?????????????????????? | | ?????????# = *@ #?????????????????????? | | ?????????# ! = #?????????????????????? | | ?????????# ############## #?????????????????????? | | ?????????# #???????????# ^ #????????????????????? | | ???##????# #???????????#" "#????????????????????? | | ???# #### #???????????#" "#????????????????????? | | ???# #???????????#" "#????????????????????? | | ???# #???????????#"""#????????????????????? | | ???# #### #???????????#####????????????????????? | | ???# ??### #????????????????????????????????????? | | ???????# #????????????????????????????????????? | | ???????# #????????????????????????????????????? | | ???????# #????????????????????????????????????? | | ???????######????????????????????????????????????? | | ?????????????????????????????????????????????????? | | ?????????????????????????????????????????????????? | | ?????????????????????????????????????????????????? | | ?????????????????????????????????????????????????? | | ?????????????????????????????????????????????????? | | ?????????????????????????????????????????????????? | | ?????????????????????????????????????????????????? | | ?????????????????????????????????????????????????? | | ?????????????????????????????????????????????????? | | ?????????????????????????????????????????????????? | | ?????????????????????????????????????????????????? | +----------------------------------------------------+ Best States ------------- Heat Dissipation 31 Energy Generation 14 Energy Capacity 250 Matter Stores 300 Matter Capacity 300 Sight Range 16 Terrain Scan Range 16 Terrain Scan Density 10 ECM Strength 2 Armor Coverage 150 Evasion (%) 72 Targeting Accuracy 6 Core Analysis 6 Defensive Hacking 10 Item Schematics ----------------- None Robot Schematics ------------------ None Fabricated ------------ Nothing Alien Tech Used ----------------- None Achievements -------------- Deadly Force I Survived The Infestation More Dakka Please Challenges ------------ None Game ------ Seed ThunderCooledArmor Manual? 0 Play Time 00:40:18 Cumulative 9.0 hours Start 2024.05.24 @ 08:45:48 End 2024.05.24 @ 09:26:42 Sessions 1 Manual Loads 0 Difficulty Rogue Special Mode None Game No. 14 Rogue 14 Adventurer 0 Explorer 0 Win Type - Total 0 Types 0/0/0/0/0/0/0/0/0 Lore% 7 Gallery% 14 Achievement% 14 Wizard Run 0 Options --------- Layout 2 ASCII 0 Keyboard 0 Movement Mouse Keybinds 0 Fullscreen 0 Font 28/Proggy Map View 65x48 Zoom Use 0% Tactical HUD 0 Map Filters NONE Filters NONE Steam 1 RUN: 96af01e9-fff0-44de-92d1-8f2ac01050c7